bitfinex-derivatives/quotes_BNBF0:USTF0_20241230
["timestamp","ask_amount","ask_price","bid_price","bid_amount"]
[1735597805526,1.48735958,702.55,701.45,0.28512367]
[1735597805723,1.0598692,702.66,701.54,1.0664356]
[1735597806027,1.74915045,702.65,701.54,1.0664356]
[1735597806227,0.26203451,702.64,701.54,1.0664356]
[1735597806630,0.26203451,702.64,701.45,0.28512367]
[1735597806631,1.48711594,702.65,701.63,1.0664356]
[1735597806829,0.26201858,702.64,701.63,1.0664356]
[1735597807729,0.26201858,702.64,701.59,1.0664356]
[1735597808124,1.48711594,702.65,701.59,1.0664356]
[1735597808725,0.26201997,702.64,701.59,1.0664356]
[1735597809032,1.48711594,702.65,701.51,1.0664356]
[1735597809332,1.48697296,702.74,701.51,1.0664356]
[1735597809525,0.26201836,702.73,701.51,1.0664356]
[1735597809725,0.26200492,702.72,701.51,1.0664356]
[1735597809926,1.48697296,702.74,701.51,1.0664356]
[1735597810132,1.48697296,702.74,701.45,0.28512367]
[1735597810133,1.48697296,702.74,701.46,1.0664356]
[1735597812626,1.48697296,702.74,701.45,0.28512367]
[1735597817036,1.0598692,703.39,701.45,0.28512367]
[1735597817235,1.48690413,702.84,701.45,0.28512367]
[1735597817434,0.28434536,703.37,701.45,0.28512367]
[1735597817630,0.26195686,703.36,701.45,0.28512367]
[1735597817835,0.28434536,703.37,701.45,0.28512367]
[1735597817836,1.48685119,702.84,701.45,0.28512367]
[1735597818037,0.28434536,703.37,701.45,0.28512367]
[1735597818238,0.26195677,703.36,701.45,0.28512367]
[1735597818434,0.26195677,703.35,701.45,0.28512367]
[1735597818638,0.26195677,703.34,701.45,0.28512367]
[1735597818838,0.26195677,703.33,701.45,0.28512367]
[1735597819138,0.26195677,703.32,701.45,0.28512367]
[1735597819339,0.26195677,703.31,701.45,0.28512367]
[1735597819542,0.26195677,703.3,701.45,0.28512367]
[1735597819835,0.26195677,703.29,701.45,0.28512367]
[1735597820039,0.26195677,703.28,701.45,0.28512367]
[1735597820243,1.4865548,703.33,701.45,0.28512367]
[1735597820541,0.2619558,703.32,701.45,0.28512367]
[1735597822836,1.4865548,703.33,701.45,0.28512367]
[1735597823141,0.26194938,703.32,701.45,0.28512367]
[1735597824242,1.4865548,703.33,701.45,0.28512367]
[1735597824243,0.26194938,703.31,701.45,0.28512367]
[1735597824542,0.26194938,703.3,701.45,0.28512367]
[1735597824738,0.26194938,703.29,701.45,0.28512367]
[1735597824941,0.26194938,703.28,701.45,0.28512367]
[1735597825143,0.26194938,703.27,701.45,0.28512367]
[1735597825340,1.4865548,703.33,701.45,0.28512367]
[1735597825544,0.26183935,703.32,701.52,1.0664356]
[1735597826142,0.26183836,703.31,701.52,1.0664356]
[1735597826342,0.26183836,703.3,701.52,1.0664356]
[1735597826542,0.26183836,703.29,701.61,1.0664356]
[1735597826846,1.4865548,703.33,701.61,1.0664356]
[1735597827044,0.26183996,703.32,701.61,1.0664356]
[1735597827844,1.4865548,703.33,701.45,0.28512367]
[1735597827845,0.26183549,703.31,701.45,0.28512367]
[1735597828039,0.26183344,703.3,701.45,0.28512367]
[1735597828239,0.26183344,703.29,701.45,0.28512367]
[1735597828442,0.26183344,703.28,701.45,0.28512367]
[1735597828639,0.26183344,703.27,701.45,0.28512367]
[1735597828942,0.26183344,703.26,701.57,1.0664356]
[1735597829144,0.26183344,703.25,701.57,1.0664356]
[1735597829342,0.26183344,703.24,701.57,1.0664356]
[1735597829543,0.26183344,703.23,701.57,1.0664356]
[1735597829745,0.26183344,703.23,701.51,1.0664356]
[1735597830545,1.48612629,703.24,701.51,1.0664356]
[1735597830746,0.26183133,703.23,701.51,1.0664356]
[1735597831147,0.26183133,703.23,701.45,0.28512367]
[1735597831148,0.26183133,703.23,701.52,1.0664356]
[1735597832242,0.28434536,703.37,701.52,1.0664356]
[1735597832448,0.28434536,703.37,701.55,1.0664356]
[1735597833947,0.28434536,703.37,701.93,1.0664356]
[1735597835046,0.28434536,703.37,701.51,1.0664356]
[1735597835047,1.48477888,703.99,702.07,1.0664356]
[1735597835249,1.0598692,704.92,702.07,1.0664356]
[1735597835446,1.48439888,704.32,702.07,1.0664356]
[1735597835648,1.0598692,704.92,702.07,1.0664356]
[1735597835848,0.26142597,704.91,702.07,1.0664356]
[1735597836043,1.48424061,704.31,702.07,1.0664356]
[1735597836267,1.48424061,704.31,701.39,2.17730602]
[1735597836268,0.28373221,704.89,701.89,1.0664356]
[1735597836451,0.26142232,704.88,701.89,1.0664356]
[1735597836644,0.26142232,704.87,701.89,1.0664356]
[1735597836848,0.26142232,704.86,701.89,1.0664356]
[1735597837044,0.26142232,704.85,701.89,1.0664356]
[1735597837244,0.26142232,704.84,701.89,1.0664356]
[1735597837450,0.26142232,704.83,701.89,1.0664356]
[1735597837650,0.26142232,704.82,702.18,1.0664356]
[1735597837949,0.26142232,704.81,702.18,1.0664356]
[1735597838149,0.26142232,704.8,702.18,1.0664356]
[1735597838344,0.26140156,704.79,702.18,1.0664356]
[1735597838650,0.26140156,704.78,702.08,1.0664356]
[1735597838849,0.26140156,704.77,702.08,1.0664356]
[1735597839148,0.26140156,704.76,702.08,1.0664356]
[1735597839345,0.26140156,704.75,702.08,1.0664356]
[1735597839549,0.26140156,704.74,701.79,1.0664356]
[1735597839750,0.26140156,704.73,701.79,1.0664356]
[1735597839943,0.26140156,704.72,701.79,1.0664356]
[1735597840148,0.26140156,704.71,701.79,1.0664356]
[1735597840343,0.26140156,704.7,701.79,1.0664356]
[1735597840548,0.26140156,704.69,701.73,1.0664356]
[1735597840849,0.26141431,704.68,701.73,1.0664356]
[1735597841050,0.26141431,704.84,701.73,1.0664356]
[1735597841250,0.26141431,704.83,701.73,1.0664356]
[1735597841443,0.26141431,704.82,701.73,1.0664356]
[1735597841650,0.26141431,704.81,701.67,1.0664356]
[1735597841950,0.26141431,704.8,701.67,1.0664356]
[1735597842250,0.26141431,704.79,701.67,1.0664356]
[1735597842647,0.26141431,704.78,701.67,1.0664356]
[1735597842849,0.26141431,704.77,701.6,1.0664356]
[1735597843049,0.26141431,704.76,701.6,1.0664356]
[1735597843246,0.26141431,704.75,701.6,1.0664356]
[1735597843452,1.48397161,704.85,701.6,1.0664356]
[1735597843656,0.26144221,704.84,701.6,1.0664356]
[1735597843853,0.26144221,704.83,701.51,1.0664356]
[1735597844048,0.26144221,704.82,701.51,1.0664356]
[1735597844253,0.26144221,704.81,701.51,1.0664356]
[1735597844453,0.26144221,704.8,701.51,1.0664356]
[1735597844648,0.26144221,704.79,701.51,1.0664356]
[1735597844854,0.26144221,704.78,701.46,1.0664356]
[1735597845154,0.26144221,704.77,701.46,1.0664356]
[1735597845355,0.26144221,704.76,701.46,1.0664356]
[1735597845552,0.26144221,704.75,701.46,1.0664356]
[1735597845753,0.26144221,704.74,701.46,1.0664356]
[1735597846051,0.26144221,704.73,701.46,1.0664356]
[1735597846256,1.48397161,704.85,701.46,1.0664356]
[1735597846257,0.26144221,704.72,701.46,1.0664356]
[1735597846554,0.26144221,704.71,701.46,1.0664356]
[1735597846754,0.26144221,704.7,701.46,1.0664356]
[1735597846948,0.26144221,704.69,701.46,1.0664356]
[1735597847151,1.48397161,704.85,701.46,1.0664356]
[1735597847152,0.26144221,704.68,701.46,1.0664356]
[1735597847449,0.26144221,704.67,701.45,0.28512367]
[1735597847654,0.26144221,704.66,701.45,0.28512367]
[1735597848651,0.26144379,704.65,701.45,0.28512367]
[1735597848851,0.26144379,704.64,701.45,0.28512367]
[1735597849157,0.26144379,704.63,701.45,0.28512367]
[1735597849458,0.26144382,704.62,701.5,1.0664356]
[1735597849652,0.26144382,704.61,701.5,1.0664356]
[1735597849856,0.26144382,704.6,701.5,1.0664356]
[1735597850055,1.48434612,704.67,701.5,1.0664356]
[1735597850056,0.26144382,704.59,701.5,1.0664356]
[1735597850259,0.26144382,704.58,701.5,1.0664356]
[1735597850557,0.26144382,704.57,701.51,1.0664356]
[1735597850757,0.26144382,704.56,701.51,1.0664356]
[1735597851057,0.26144382,704.55,701.51,1.0664356]
[1735597851249,0.26144382,704.54,701.51,1.0664356]
[1735597851449,0.26144382,704.53,701.51,1.0664356]
[1735597851666,0.26144382,704.52,701.51,1.0664356]
[1735597851857,0.26144382,704.51,701.51,1.0664356]
[1735597852052,0.26144382,704.5,701.51,1.0664356]
[1735597852259,0.26144382,704.49,701.51,1.0664356]
[1735597852556,1.48434612,704.67,701.51,1.0664356]
[1735597852557,0.26144382,704.48,701.51,1.0664356]
[1735597852759,0.26144382,704.47,701.51,1.0664356]
[1735597852958,0.26144382,704.46,701.51,1.0664356]
[1735597853160,0.26144382,704.45,701.54,1.0664356]
[1735597853353,0.26144382,704.44,701.54,1.0664356]
[1735597853561,0.26144382,704.43,701.54,1.0664356]
[1735597853757,0.26144382,704.42,701.54,1.0664356]
[1735597853958,1.48434612,704.67,701.54,1.0664356]
[1735597854158,0.26149168,704.66,701.54,1.0664356]
[1735597854354,0.26149168,704.65,701.61,1.0664356]
[1735597854662,0.26149168,704.64,701.61,1.0664356]
[1735597854959,0.26149168,704.63,701.61,1.0664356]
[1735597855263,0.26149168,704.62,701.61,1.0664356]
[1735597855456,0.26149168,704.61,701.57,1.0664356]
[1735597855652,0.26149168,704.6,701.57,1.0664356]
[1735597855858,0.26149168,704.59,701.57,1.0664356]
[1735597856061,0.26149168,704.58,701.57,1.0664356]
[1735597856258,0.90046946,704.57,701.57,1.0664356]
[1735597856455,0.90046946,704.56,701.57,1.0664356]
[1735597856657,0.26152979,704.56,701.62,1.0664356]
[1735597856959,0.26152979,704.55,701.62,1.0664356]
[1735597857153,0.26152979,704.54,701.62,1.0664356]
[1735597857357,0.26152979,704.53,701.62,1.0664356]
[1735597857557,0.26152979,704.52,701.62,1.0664356]
[1735597857754,0.26152979,704.52,701.45,0.28512367]
[1735597857755,0.26152979,704.51,701.67,1.0664356]
[1735597857962,0.26152979,704.5,701.67,1.0664356]
[1735597858261,0.90058716,704.49,701.67,1.0664356]
[1735597858463,0.90058716,704.48,701.67,1.0664356]
[1735597858663,0.26152979,704.47,701.67,1.0664356]
[1735597858956,0.26152979,704.46,701.79,1.0664356]
[1735597859161,0.26152979,704.45,701.79,1.0664356]
[1735597859356,0.26152979,704.44,701.79,1.0664356]
[1735597859560,0.26152979,704.43,701.79,1.0664356]
[1735597859754,0.26152979,704.42,701.79,1.0664356]
[1735597859956,0.26152979,704.41,701.79,1.0664356]
[1735597860157,0.26152979,704.4,701.79,1.0664356]
[1735597860356,0.26152979,704.39,701.79,1.0664356]
[1735597860561,0.26152979,704.38,701.77,1.0664356]
[1735597860864,0.26152979,704.37,701.77,1.0664356]
[1735597861059,1.4846997,704.51,701.77,1.0664356]
[1735597861264,0.26159493,704.5,701.77,1.0664356]
[1735597861564,0.26159493,704.49,701.77,1.0664356]
[1735597861764,0.26159493,704.48,701.78,1.0664356]
[1735597861966,0.26159493,704.47,701.78,1.0664356]
[1735597862165,0.26159493,704.46,701.78,1.0664356]
[1735597862362,0.26159493,704.45,701.78,1.0664356]
[1735597862567,1.4846997,704.51,701.57,1.0664356]
[1735597862568,0.26159493,704.44,701.8,1.0664356]
[1735597862865,0.26159493,704.43,701.8,1.0664356]
[1735597863064,0.26159493,704.42,701.8,1.0664356]
[1735597863266,0.26159493,704.41,701.8,1.0664356]
[1735597863462,1.4846997,704.51,701.8,1.0664356]
[1735597863766,0.26159048,704.5,701.8,1.0664356]
[1735597863968,1.4846997,704.51,701.45,0.28512367]
[1735597863969,0.26159048,704.49,701.88,1.0664356]
[1735597864267,0.26158957,704.48,701.88,1.0664356]
[1735597864471,0.26158957,704.47,701.88,1.0664356]
[1735597864665,0.26158957,704.46,701.88,1.0664356]
[1735597864866,0.26158957,704.45,702.05,1.0664356]
[1735597865062,0.26158957,704.44,702.05,1.0664356]
[1735597865262,0.26158957,704.43,702.05,1.0664356]
[1735597865465,0.26158957,704.42,702.05,1.0664356]
[1735597865668,0.26158957,704.41,702.15,0.28483942]
[1735597865868,0.26158957,704.4,702.15,0.28483942]
[1735597866070,0.26158957,704.39,702.15,0.28483942]
[1735597866264,0.28394167,704.37,702.15,0.28483942]
[1735597866567,0.26159549,704.36,702.15,0.28483942]
[1735597866766,0.26159549,704.35,702.15,0.28483942]
[1735597866964,0.26159199,704.34,702.15,0.28483942]
[1735597867169,1.0598692,704.27,702.25,1.0664356]
[1735597867371,0.26159199,704.26,702.25,1.0664356]
[1735597867566,0.26159199,704.25,702.25,1.0664356]
[1735597867866,1.0598692,704.21,702.25,1.0664356]
[1735597868066,0.26159199,704.2,702.33,1.0664356]
[1735597868422,0.26159199,704.19,702.33,1.0664356]
[1735597868599,0.26159199,704.18,702.33,1.0664356]
[1735597868798,0.26159199,704.17,702.33,1.0664356]
[1735597869074,0.26157506,704.16,702.27,1.0664356]
[1735597869265,0.26157506,704.15,702.27,1.0664356]
[1735597869471,0.26157506,704.14,702.27,1.0664356]
[1735597869771,0.26157506,704.13,702.27,1.0664356]
[1735597869974,0.26157506,704.12,702.39,1.0664356]
[1735597870169,0.26157506,704.11,702.39,1.0664356]
[1735597870374,0.26157506,704.1,702.39,1.0664356]
[1735597870575,0.26157506,704.09,702.39,1.0664356]
[1735597870773,0.26157506,704.08,702.39,1.0664356]
[1735597871076,0.26157506,704.07,702.39,1.0664356]
[1735597871275,0.26157506,704.06,702.39,1.0664356]
[1735597871475,0.26153247,704.05,702.43,1.0664356]
[1735597871675,0.26153247,704.23,702.43,1.0664356]
[1735597871868,0.26153247,704.22,702.43,1.0664356]
[1735597872072,1.4846997,704.24,702.43,1.0664356]
[1735597872273,0.2615392,704.23,702.43,1.0664356]
[1735597872475,1.4846997,704.24,702.43,1.0664356]
[1735597872476,0.2615392,704.22,702.43,1.0664356]
[1735597872777,0.2615392,704.21,702.42,1.0664356]
[1735597872975,0.2615392,704.2,702.42,1.0664356]
[1735597873172,0.2615392,704.19,702.42,1.0664356]
[1735597873373,0.2615392,704.18,702.42,1.0664356]
[1735597873671,0.2615392,704.17,702.42,1.0664356]
[1735597873877,0.2615392,704.16,702.44,1.0664356]
[1735597874077,0.2615392,704.23,702.44,1.0664356]
[1735597874270,0.26154016,704.22,702.44,1.0664356]
[1735597874471,0.26154016,704.21,702.44,1.0664356]
[1735597874673,0.26154016,704.2,702.44,1.0664356]
[1735597874971,0.26154016,704.19,702.46,1.35114932]
[1735597875176,0.26154016,704.18,702.46,1.35114932]
[1735597875475,0.26154016,704.17,702.46,1.35114932]
[1735597875671,0.26154016,704.16,702.46,1.35114932]
[1735597875872,0.26154016,704.15,702.46,1.35114932]
[1735597876070,1.4846997,704.24,702.48,0.28470561]
[1735597876071,0.26154016,704.14,702.48,0.28470561]
[1735597876276,0.26154016,704.13,702.48,0.28470561]
[1735597876475,0.26154016,704.12,702.48,0.28470561]
[1735597876671,1.4846997,704.24,702.48,0.28470561]
[1735597876672,0.26154016,704.23,702.48,0.28470561]
[1735597876874,0.26155154,704.22,702.48,0.28470561]
[1735597877071,0.26155154,704.21,702.48,1.35114121]
[1735597877273,0.54556176,704.2,702.48,1.35114121]
[1735597877472,0.26155154,704.19,702.48,1.35114121]
[1735597878376,0.26155154,704.18,702.5,1.0664356]
[1735597878578,0.26155154,704.17,702.52,0.2846894]
[1735597878775,0.26155154,704.16,702.52,0.2846894]
[1735597878974,0.26155154,704.15,702.52,0.2846894]
[1735597879174,0.26155154,704.14,702.52,0.2846894]
[1735597879478,0.26154939,704.13,702.57,1.0664356]
[1735597879677,0.26154939,704.12,702.57,1.0664356]
[1735597879972,1.48444637,704.15,702.57,1.0664356]
[1735597880177,0.26155184,704.14,702.57,1.0664356]
[1735597880370,0.26155184,704.13,702.57,1.0664356]
[1735597880574,0.26155184,704.12,702.57,1.0664356]
[1735597880774,1.48444637,704.15,702.6,1.0664356]
[1735597880775,0.26155184,704.11,702.6,1.0664356]
[1735597881071,0.26155184,704.1,702.6,1.0664356]
[1735597881275,0.26155184,704.09,702.6,1.0664356]
[1735597881578,0.26155184,704.08,702.61,0.28465293]
[1735597881779,0.26155184,704.07,702.61,0.28465293]
[1735597881980,0.26155184,704.14,702.61,0.28465293]
[1735597882181,0.26155184,704.13,702.61,0.28465293]
[1735597882378,0.26155184,704.12,702.61,0.28465293]
[1735597882572,0.26155184,704.11,702.61,0.28465293]
[1735597882775,0.26155184,704.1,702.61,0.28465293]
[1735597882979,0.26155184,704.09,702.61,0.28465293]
[1735597883178,0.26155184,704.08,702.61,0.28465293]
[1735597883382,0.26155184,704.07,702.61,0.28465293]
[1735597883578,0.26155184,704.06,702.61,0.28465293]
[1735597883778,0.26155184,704.05,702.61,0.28465293]
[1735597883979,0.26155184,704.04,702.61,0.28465293]
[1735597884174,0.26155184,704.03,702.61,0.28465293]
[1735597884382,0.26155184,704.02,702.61,0.28465293]
[1735597884576,0.26155184,704.13,702.61,0.28465293]
[1735597884780,1.0598692,704.0,702.61,0.28465293]
[1735597884981,0.26155184,703.99,702.61,0.28465293]
[1735597885983,1.0598692,703.97,702.61,0.28465293]
[1735597886183,0.26155184,703.96,702.61,0.28465293]
[1735597887177,0.2616224,703.95,702.61,0.28465293]
[1735597887379,0.2616224,703.94,702.61,0.28465293]
[1735597887579,0.2616224,703.93,702.61,0.28465293]
[1735597887781,0.2616224,703.92,702.61,0.28465293]
[1735597887983,0.2616224,703.91,702.61,0.28465293]
[1735597888185,0.2616224,703.96,702.61,0.28465293]
[1735597888379,0.2616224,703.95,702.61,0.28465293]
[1735597888578,0.2616224,703.94,702.61,0.28465293]
[1735597888780,0.2616224,703.93,702.61,0.28465293]
[1735597888985,0.2616224,703.92,702.61,0.28465293]
[1735597889181,0.2616224,703.91,702.61,0.28465293]
[1735597889479,0.2616224,703.9,702.61,0.28465293]
[1735597889783,1.48482112,703.91,702.61,0.28465293]
[1735597889986,0.26169083,703.9,702.61,0.28465293]
[1735597890985,1.0598692,703.75,702.61,0.28465293]
[1735597891181,0.26169083,703.74,702.61,0.28465293]
[1735597891685,0.26169083,703.74,702.39,1.0664356]
[1735597891885,1.0598692,703.73,702.31,1.0664356]
[1735597892085,0.26169083,703.72,702.31,1.0664356]
[1735597892386,1.0598692,703.73,702.31,1.0664356]
[1735597892587,0.54592641,703.71,702.31,1.0664356]
[1735597892787,0.26171843,703.7,702.31,1.0664356]
[1735597893181,0.26171843,703.7,701.69,2.17730602]
[1735597893182,0.26171843,703.7,702.24,1.0664356]
[1735597893386,0.26171843,703.7,702.24,1.35123851]
[1735597894190,0.26171843,703.7,702.24,0.28480291]
[1735597894991,0.26171935,703.69,702.24,0.28480291]
[1735597895291,0.26171935,703.68,702.24,0.28480291]
[1735597895590,0.26171935,703.67,702.24,0.28480291]
[1735597895790,0.26171935,703.66,702.24,0.28480291]
[1735597895990,0.26171935,703.65,702.24,0.28480291]
[1735597896190,0.26171935,703.64,702.24,0.28480291]
[1735597896392,0.26171935,703.63,702.24,0.28480291]
[1735597896693,0.26171935,703.62,702.24,0.28480291]
[1735597896890,0.26171935,703.61,702.24,0.28480291]
[1735597897088,0.26171935,703.6,702.24,0.28480291]
[1735597897393,0.26171935,703.59,702.24,0.28480291]
[1735597897593,0.28420798,703.71,702.24,0.28480291]
[1735597897793,0.26173657,703.7,702.24,0.28480291]
[1735597898192,0.54595263,703.69,702.24,0.28480291]
[1735597898392,0.26173657,703.68,702.24,0.28480291]
[1735597898689,0.54595667,703.68,702.24,0.28480291]
[1735597898995,0.26173657,703.67,702.24,0.28480291]
[1735597899691,2.03151478,703.66,702.24,0.28480291]
[1735597899991,0.54596878,703.65,702.24,0.28480291]
[1735597900290,0.54598231,703.64,702.24,0.28480291]
[1735597900496,0.26174606,703.63,702.24,0.28480291]
[1735597900798,0.26174606,703.62,702.24,0.28480291]
[1735597900992,0.26174606,703.61,702.24,0.28480291]
[1735597901189,0.26174606,703.6,702.24,0.28480291]
[1735597901389,0.26174606,703.59,702.24,0.28480291]
[1735597901589,0.26174606,703.58,702.24,0.28480291]
[1735597901895,0.26174606,703.57,702.24,0.28480291]
[1735597902195,0.26174606,703.56,702.24,0.28480291]
[1735597902395,0.26174606,703.55,702.24,0.28480291]
[1735597902593,0.26174606,703.54,702.24,0.28480291]
[1735597902790,0.26174606,703.53,702.24,0.28480291]
[1735597902990,0.26179102,703.52,702.24,0.28480291]
[1735597903299,0.26179102,703.51,702.24,0.28480291]
[1735597903591,0.26179102,703.5,702.24,0.28480291]
[1735597903896,0.26179102,703.49,702.24,0.28480291]
[1735597904096,0.26179102,703.48,702.24,0.28480291]
[1735597904296,0.26179102,703.47,702.24,0.28480291]
[1735597904497,0.26179102,703.46,702.24,0.28480291]
[1735597904696,0.26179102,703.45,702.24,0.28480291]
[1735597904892,0.26179102,703.44,702.24,0.28480291]
[1735597905098,0.28423625,703.64,702.24,0.28480291]
[1735597905099,0.26179102,703.43,702.24,0.28480291]
[1735597905292,0.26179102,703.42,702.24,0.28480291]
[1735597905492,0.26179102,703.41,702.24,0.28480291]
[1735597905691,0.26179102,703.4,702.24,0.28480291]
[1735597905992,0.26179102,703.39,702.24,0.28480291]
[1735597906194,0.26179102,703.38,702.24,0.28480291]
[1735597906391,0.26179102,703.37,702.24,0.28480291]
[1735597906591,0.26179102,703.36,702.24,0.28480291]
[1735597906794,0.26179102,703.35,702.24,0.28480291]
[1735597906994,0.26179102,703.34,702.24,0.28480291]
[1735597907197,0.26179102,703.33,702.24,0.28480291]
[1735597907392,0.26179102,703.32,702.24,0.28480291]
[1735597907592,0.26179102,703.31,702.24,0.28480291]
[1735597907797,0.26179102,703.3,702.24,0.28480291]
[1735597907997,0.26179102,703.29,702.24,0.28480291]
[1735597908193,0.28423625,703.64,702.24,0.28480291]
[1735597908397,0.26182907,703.63,702.24,0.28480291]
[1735597908593,0.5460734,703.62,702.24,0.28480291]
[1735597908798,0.54607744,703.61,702.24,0.28480291]
[1735597908999,0.54608148,703.6,702.24,0.28480291]
[1735597909199,0.54608552,703.59,702.24,0.28480291]
[1735597909401,0.54608956,703.58,702.24,0.28480291]
[1735597909600,0.5460936,703.57,702.24,0.28480291]
[1735597909901,0.63967628,703.92,702.24,0.28480291]
[1735597909902,0.54609764,703.56,702.24,0.28480291]
[1735597910102,0.54610168,703.55,702.24,0.28480291]
[1735597910302,0.26182907,703.54,702.24,0.28480291]
[1735597910594,0.26182907,703.53,702.24,0.28480291]
[1735597910802,0.5461138,703.52,702.24,0.28480291]
[1735597910998,0.26182907,703.51,702.24,0.28480291]
[1735597911197,0.26182907,703.5,702.24,0.28480291]
[1735597911398,0.54612593,703.49,702.24,0.28480291]
[1735597911598,0.26182907,703.48,702.24,0.28480291]
[1735597911796,0.26182907,703.47,702.24,0.28480291]
[1735597913502,0.2843009,703.48,702.24,0.28480291]
[1735597913696,1.48602581,703.56,702.24,0.28480291]
[1735597915203,1.0598692,704.23,702.24,0.28480291]
[1735597915402,1.48530698,703.62,702.24,0.28480291]
[1735597915604,1.0598692,704.23,702.24,0.28480291]
[1735597915902,1.48513795,703.68,702.24,0.28480291]
[1735597916102,1.0598692,704.23,702.24,0.28480291]
[1735597916298,0.54561427,704.22,702.24,0.28480291]
[1735597916499,0.26161212,704.21,702.24,0.28480291]
[1735597917403,1.48474721,704.2,702.24,0.28480291]
[1735597917599,0.26161212,704.19,702.24,0.28480291]
[1735597917898,0.26161212,704.18,702.24,0.28480291]
[1735597918103,0.26161212,704.17,702.24,0.28480291]
[1735597918403,0.26161212,704.16,702.24,0.28480291]
[1735597918603,1.48474721,704.2,702.28,1.0664356]
[1735597918604,2.54461641,704.2,702.28,1.0664356]
[1735597918804,0.26162881,704.19,702.28,1.0664356]
[1735597919004,0.26162881,704.18,702.28,1.0664356]
[1735597919303,2.54461641,704.2,702.28,1.0664356]
[1735597919499,0.26164142,704.19,702.28,1.0664356]
[1735597919699,1.0598692,704.14,702.26,1.0664356]
[1735597919904,0.26164142,704.13,702.26,1.0664356]
[1735597920107,0.26164142,704.12,702.26,1.0664356]
[1735597920304,0.26164142,704.11,702.26,1.0664356]
[1735597920605,0.26164142,704.1,702.26,1.0664356]
[1735597920805,0.26164142,704.09,702.26,1.0664356]
[1735597921001,0.26164142,704.08,702.24,1.35123851]
[1735597921198,0.26164142,704.07,702.24,1.35123851]
[1735597921399,0.26164142,704.06,702.24,1.35123851]
[1735597921603,0.26164142,704.05,702.24,1.35123851]
[1735597921804,0.26164142,704.04,702.24,1.35123851]
[1735597921999,0.26164142,704.03,702.24,1.35123851]
[1735597922201,0.26164142,704.02,702.24,1.35123851]
[1735597922406,0.26164142,704.01,702.24,1.35123851]
[1735597922607,0.26164142,704.0,702.24,1.35123851]
[1735597922807,0.26164142,703.99,702.24,0.28480291]
[1735597923005,0.26164142,703.98,702.24,0.28480291]
[1735597923206,0.26164142,703.97,702.24,0.28480291]
[1735597923407,0.26164142,703.96,702.24,0.28480291]
[1735597923607,0.26164142,703.95,702.24,0.28480291]
[1735597923900,0.26164142,703.94,702.24,0.28480291]
[1735597924107,0.26164142,703.93,702.24,0.28480291]
[1735597924302,0.26164142,703.92,702.24,0.28480291]
[1735597924502,0.26164142,703.91,702.24,0.28480291]
[1735597924703,0.26164142,703.9,702.24,0.28480291]
[1735597924903,1.0598692,704.01,702.24,0.28480291]
[1735597924904,0.26164142,703.89,702.24,0.28480291]
[1735597925107,0.26164142,703.88,702.24,0.28480291]
[1735597925306,0.26164142,703.87,702.24,0.28480291]
[1735597925505,1.0598692,704.0,702.24,0.28480291]
[1735597925506,0.26164142,703.86,702.24,0.28480291]
[1735597925706,0.26168797,703.85,702.24,0.28480291]
[1735597925907,0.26168797,703.84,702.24,0.28480291]
[1735597926110,0.26168797,703.83,702.24,0.28480291]
[1735597926402,0.26168465,703.82,702.24,0.28480291]
[1735597926607,0.26168465,703.81,702.24,0.28480291]
[1735597926809,0.26168465,703.8,702.24,0.28480291]
[1735597927107,2.12412531,704.2,702.24,0.28480291]
[1735597927108,0.26167546,703.79,702.24,0.28480291]
[1735597927307,0.26167546,703.78,702.24,0.28480291]
[1735597927504,0.26167546,703.77,702.24,0.28480291]
[1735597927705,0.26167546,703.76,702.24,0.28480291]
[1735597927902,0.26167546,703.75,702.24,0.28480291]
[1735597928104,0.26167546,703.74,702.24,0.28480291]
[1735597928304,0.26167546,703.73,702.24,0.28480291]
[1735597928504,0.26167546,703.77,702.24,0.28480291]
[1735597928701,0.26167546,703.76,702.24,0.28480291]
[1735597928909,0.26167546,703.75,702.24,0.28480291]
[1735597929112,0.26167546,703.74,702.24,0.28480291]
[1735597929312,0.26167546,703.73,702.24,0.28480291]
[1735597929505,0.26167546,703.72,702.24,0.28480291]
[1735597929710,0.26167546,703.71,702.24,0.28480291]
[1735597929912,1.48514851,703.78,702.24,0.28480291]
[1735597930110,0.26166743,703.77,702.24,0.28480291]
[1735597931109,0.26167954,703.76,702.24,0.28480291]
[1735597931311,0.26167954,703.75,702.24,0.28480291]
[1735597931505,0.26167954,703.74,702.24,0.28480291]
[1735597931705,0.26167954,703.73,702.24,0.28480291]
[1735597931910,0.26167954,703.72,702.24,0.28480291]
[1735597932112,0.26167954,703.71,702.24,0.28480291]
[1735597932411,0.26167954,703.7,702.24,0.28480291]
[1735597932608,0.26167954,703.69,702.24,0.28480291]
[1735597932813,0.26169865,703.68,702.24,0.28480291]
[1735597933011,0.26169865,703.67,702.24,0.28480291]
[1735597933212,0.26169865,703.66,702.24,0.28480291]
[1735597933413,0.26169865,703.65,702.24,0.28480291]
[1735597933613,1.48514851,703.78,702.24,0.28480291]
[1735597933813,0.26172975,703.77,702.24,0.28480291]
[1735597935419,0.26172975,703.76,702.24,0.28480291]
[1735597935619,0.26172975,703.75,702.24,0.28480291]
[1735597935819,1.48514851,703.78,702.24,0.28480291]
[1735597935820,0.26172975,703.74,702.24,0.28480291]
[1735597936119,1.0598692,703.72,702.24,0.28480291]